[Event "Titled Tuesday Blitz April 26 Early 2022"]
[White "Hoffmann, Asa"]
[Black "O`Gorman, Tom"]
[WhiteFideId "2001470"]
[BlackFideId "2508249"]
[WhiteElo "2117"]
[BlackElo "2247"]
[Result "0-1"]
[Round "03"]
[TimeControl "180+1"]
[Date "2022.04.26"]
[WhiteClock "0:01:31"]
[BlackClock "0:01:18"]

1. d4 {[%clk 0:02:55]}  d5 {[%clk 0:02:59]} 2. Bg5 {[%clk 0:02:52]}  f6 {[%clk 0:02:59]} 3. Bf4 {[%clk 0:02:52]}  Nc6 {[%clk 0:02:58]} 4. e3 {[%clk 0:02:52]}  e5 {[%clk 0:02:55]} 5. Bg3 {[%clk 0:02:52]}  exd4 {[%clk 0:02:55]} 6. exd4 {[%clk 0:02:51]}  Bd6 {[%clk 0:02:55]} 7. Nc3 {[%clk 0:02:47]}  Nge7 {[%clk 0:02:55]} 8. Bd3 {[%clk 0:02:45]}  O-O {[%clk 0:02:55]} 9. Nf3 {[%clk 0:02:44]}  Bf5 {[%clk 0:02:53]} 10. O-O {[%clk 0:02:42]}  Qd7 {[%clk 0:02:47]} 11. Re1 {[%clk 0:02:41]}  Rae8 {[%clk 0:02:43]} 12. a3 {[%clk 0:02:39]}  Bg4 {[%clk 0:02:07]} 13. Bb5 {[%clk 0:02:29]}  a6 {[%clk 0:02:03]} 14. Ba4 {[%clk 0:02:29]}  Bxg3 {[%clk 0:01:54]} 15. hxg3 {[%clk 0:02:28]}  b5 {[%clk 0:01:42]} 16. Bb3 {[%clk 0:02:27]}  Na5 {[%clk 0:01:42]} 17. Ba2 {[%clk 0:02:14]}  c6 {[%clk 0:01:39]} 18. Qd2 {[%clk 0:02:10]}  Nc4 {[%clk 0:01:30]} 19. Bxc4 {[%clk 0:02:09]}  dxc4 {[%clk 0:01:31]} 20. Re2 {[%clk 0:01:51]}  Nd5 {[%clk 0:01:29]} 21. Rae1 {[%clk 0:01:48]}  Rxe2 {[%clk 0:01:29]} 22. Rxe2 {[%clk 0:01:46]}  Qf5 {[%clk 0:01:27]} 23. Nxd5 {[%clk 0:01:42]}  Qxd5 {[%clk 0:01:26]} 24. Qf4 {[%clk 0:01:41]}  Bxf3 {[%clk 0:01:24]} 25. gxf3 {[%clk 0:01:41]}  c5 {[%clk 0:01:18]} 26. dxc5 {[%clk 0:01:33]}  Qd1+ {[%clk 0:01:18]} 27. Kg2 {[%clk 0:01:31]}  Qxe2 {[%clk 0:01:18]} 0-1


[Site "https://www.chess.com"]

[Event "Titled Tuesday Blitz April 26 Early 2022"]
[White "Jakubowski, Krzysztof"]
[Black "Gschnitzer, Adrian"]
[WhiteFideId "1112848"]
[BlackFideId "1270337"]
[WhiteElo "2365"]
[BlackElo "2294"]
[Result "1-0"]
[Round "03"]
[TimeControl "180+1"]
[Date "2022.04.26"]
[WhiteClock "0:00:33"]
[BlackClock "0:00:10"]

1. e4 {[%clk 0:03:00]}  c6 {[%clk 0:02:59]} 2. d4 {[%clk 0:02:59]}  d5 {[%clk 0:03:00]} 3. exd5 {[%clk 0:02:58]}  cxd5 {[%clk 0:03:01]} 4. Bd3 {[%clk 0:02:58]}  Nc6 {[%clk 0:03:01]} 5. c3 {[%clk 0:02:58]}  Qc7 {[%clk 0:03:01]} 6. Na3 {[%clk 0:02:52]}  e5 {[%clk 0:02:57]} 7. Nb5 {[%clk 0:02:47]}  Qb8 {[%clk 0:02:56]} 8. dxe5 {[%clk 0:02:46]}  Nxe5 {[%clk 0:02:54]} 9. Ne2 {[%clk 0:02:45]}  a6 {[%clk 0:02:52]} 10. Nbd4 {[%clk 0:02:44]}  Nf6 {[%clk 0:02:48]} 11. Bf4 {[%clk 0:02:37]}  Bd6 {[%clk 0:02:42]} 12. Bxe5 {[%clk 0:02:36]}  Bxe5 {[%clk 0:02:43]} 13. Qd2 {[%clk 0:02:34]}  O-O {[%clk 0:02:41]} 14. O-O-O {[%clk 0:02:33]}  Ne4 {[%clk 0:02:38]} 15. Qe3 {[%clk 0:02:23]}  f5 {[%clk 0:02:26]} 16. f4 {[%clk 0:02:02]}  Bf6 {[%clk 0:02:22]} 17. Bxe4 {[%clk 0:01:59]}  dxe4 {[%clk 0:02:17]} 18. h3 {[%clk 0:01:55]}  b5 {[%clk 0:02:14]} 19. Rhg1 {[%clk 0:01:52]}  b4 {[%clk 0:02:12]} 20. Nc6 {[%clk 0:01:51]}  Qb7 {[%clk 0:02:05]} 21. Nxb4 {[%clk 0:01:50]}  Be6 {[%clk 0:01:55]} 22. Nd4 {[%clk 0:01:48]}  Bf7 {[%clk 0:01:41]} 23. Nxf5 {[%clk 0:01:43]}  Rfc8 {[%clk 0:01:41]} 24. Kb1 {[%clk 0:01:30]}  a5 {[%clk 0:01:38]} 25. Nd6 {[%clk 0:01:27]}  Qc7 {[%clk 0:01:23]} 26. Nc2 {[%clk 0:01:11]}  Rcb8 {[%clk 0:01:18]} 27. Ka1 {[%clk 0:00:58]}  a4 {[%clk 0:00:59]} 28. Nxf7 {[%clk 0:00:39]}  a3 {[%clk 0:00:57]} 29. Ne5 {[%clk 0:00:39]}  axb2+ {[%clk 0:00:19]} 30. Kb1 {[%clk 0:00:38]}  Be7 {[%clk 0:00:14]} 31. Qxe4 {[%clk 0:00:33]}  Rxa2 {[%clk 0:00:12]} 32. Qd5+ {[%clk 0:00:32]}  Kh8 {[%clk 0:00:11]} 33. Nf7+ {[%clk 0:00:32]}  Kg8 {[%clk 0:00:11]} 34. Nh6+ {[%clk 0:00:33]}  Kh8 {[%clk 0:00:10]} 35. Qg8+ {[%clk 0:00:33]}  Rxg8 {[%clk 0:00:10]} 36. Nf7# {[%clk 0:00:33]} 1-0


[Site "https://www.chess.com"]

[Event "Titled Tuesday Blitz April 26 Early 2022"]
[White "Kim, Sergey"]
[Black "Costachi, Mihnea"]
[WhiteFideId "13700570"]
[BlackFideId "1217518"]
[WhiteElo "2549"]
[BlackElo "2476"]
[Result "1/2-1/2"]
[Round "03"]
[TimeControl "180+1"]
[Date "2022.04.26"]
[WhiteClock "0:00:08"]
[BlackClock "0:01:12"]

1. d4 {[%clk 0:02:56]}  Nf6 {[%clk 0:02:57]} 2. c4 {[%clk 0:02:55]}  g6 {[%clk 0:02:56]} 3. Nc3 {[%clk 0:02:55]}  d5 {[%clk 0:02:57]} 4. cxd5 {[%clk 0:02:55]}  Nxd5 {[%clk 0:02:57]} 5. e4 {[%clk 0:02:55]}  Nxc3 {[%clk 0:02:58]} 6. bxc3 {[%clk 0:02:56]}  c5 {[%clk 0:02:58]} 7. Bc4 {[%clk 0:02:56]}  Bg7 {[%clk 0:02:57]} 8. Ne2 {[%clk 0:02:57]}  cxd4 {[%clk 0:02:56]} 9. cxd4 {[%clk 0:02:56]}  Nc6 {[%clk 0:02:56]} 10. Be3 {[%clk 0:02:56]}  Qa5+ {[%clk 0:02:57]} 11. Bd2 {[%clk 0:02:55]}  Qc7 {[%clk 0:02:54]} 12. Rc1 {[%clk 0:02:40]}  O-O {[%clk 0:02:51]} 13. O-O {[%clk 0:02:38]}  Qb6 {[%clk 0:02:46]} 14. Be3 {[%clk 0:02:31]}  Na5 {[%clk 0:02:43]} 15. Bd3 {[%clk 0:02:27]}  Bd7 {[%clk 0:02:40]} 16. Qd2 {[%clk 0:02:26]}  Nc6 {[%clk 0:02:33]} 17. d5 {[%clk 0:02:19]}  Nd4 {[%clk 0:02:34]} 18. Rb1 {[%clk 0:02:06]}  Nxe2+ {[%clk 0:02:33]} 19. Bxe2 {[%clk 0:02:03]}  Qc7 {[%clk 0:02:26]} 20. Rfc1 {[%clk 0:01:39]}  Qb8 {[%clk 0:02:26]} 21. Bf4 {[%clk 0:01:17]}  Be5 {[%clk 0:02:26]} 22. Bxe5 {[%clk 0:01:18]}  Qxe5 {[%clk 0:02:26]} 23. Rxb7 {[%clk 0:01:18]}  Bc8 {[%clk 0:02:17]} 24. Rb4 {[%clk 0:01:17]}  a5 {[%clk 0:02:15]} 25. f4 {[%clk 0:01:12]}  Qd6 {[%clk 0:02:09]} 26. Rbc4 {[%clk 0:01:08]}  Qb6+ {[%clk 0:02:07]} 27. Qd4 {[%clk 0:01:04]}  Qxd4+ {[%clk 0:02:05]} 28. Rxd4 {[%clk 0:01:04]}  Ba6 {[%clk 0:02:06]} 29. Bxa6 {[%clk 0:01:02]}  Rxa6 {[%clk 0:02:06]} 30. Rdc4 {[%clk 0:01:01]}  Rb6 {[%clk 0:02:04]} 31. R1c2 {[%clk 0:01:00]}  e6 {[%clk 0:02:04]} 32. dxe6 {[%clk 0:00:55]}  fxe6 {[%clk 0:02:01]} 33. g3 {[%clk 0:00:56]}  Kg7 {[%clk 0:01:58]} 34. Kf2 {[%clk 0:00:55]}  g5 {[%clk 0:01:57]} 35. Ke3 {[%clk 0:00:51]}  gxf4+ {[%clk 0:01:58]} 36. gxf4 {[%clk 0:00:51]}  Rb1 {[%clk 0:01:58]} 37. Rg2+ {[%clk 0:00:41]}  Kh6 {[%clk 0:01:53]} 38. Rc6 {[%clk 0:00:37]}  Re1+ {[%clk 0:01:53]} 39. Kd4 {[%clk 0:00:35]}  Rxf4 {[%clk 0:01:47]} 40. Rxe6+ {[%clk 0:00:34]}  Kh5 {[%clk 0:01:48]} 41. Re5+ {[%clk 0:00:27]}  Kh4 {[%clk 0:01:48]} 42. Re7 {[%clk 0:00:19]}  h5 {[%clk 0:01:47]} 43. Kd5 {[%clk 0:00:19]}  Kh3 {[%clk 0:01:45]} 44. Rb2 {[%clk 0:00:18]}  Rd1+ {[%clk 0:01:42]} 45. Kc6 {[%clk 0:00:18]}  h4 {[%clk 0:01:34]} 46. e5 {[%clk 0:00:18]}  Re4 {[%clk 0:01:27]} 47. e6 {[%clk 0:00:16]}  a4 {[%clk 0:01:27]} 48. Rc2 {[%clk 0:00:13]}  a3 {[%clk 0:01:27]} 49. Re8 {[%clk 0:00:12]}  Rde1 {[%clk 0:01:20]} 50. Kd5 {[%clk 0:00:11]}  R4e3 {[%clk 0:01:18]} 51. Kd6 {[%clk 0:00:10]}  Rd1+ {[%clk 0:01:17]} 52. Ke7 {[%clk 0:00:10]}  Rde1 {[%clk 0:01:18]} 53. Kd7 {[%clk 0:00:09]}  Rd3+ {[%clk 0:01:18]} 54. Ke7 {[%clk 0:00:10]}  Rde3 {[%clk 0:01:15]} 55. Kd7 {[%clk 0:00:10]}  Rd1+ {[%clk 0:01:15]} 56. Ke7 {[%clk 0:00:10]}  Rb1 {[%clk 0:01:16]} 57. Kd7 {[%clk 0:00:10]}  Rb7+ {[%clk 0:01:15]} 58. Kd6 {[%clk 0:00:09]}  Rb6+ {[%clk 0:01:15]} 59. Kd7 {[%clk 0:00:10]}  Rb7+ {[%clk 0:01:13]} 60. Kd6 {[%clk 0:00:10]}  Rb2 {[%clk 0:01:14]} 61. Rxb2 {[%clk 0:00:07]}  axb2 {[%clk 0:01:15]} 62. Rb8 {[%clk 0:00:07]}  Rd3+ {[%clk 0:01:11]} 63. Ke5 {[%clk 0:00:07]}  Re3+ {[%clk 0:01:11]} 64. Kd6 {[%clk 0:00:07]}  Rd3+ {[%clk 0:01:12]} 65. Ke5 {[%clk 0:00:08]}  Re3+ {[%clk 0:01:12]} 66. Kd6 {[%clk 0:00:08]} 1/2-1/2


[Site "https://www.chess.com"]

[Event "Titled Tuesday Blitz April 26 Early 2022"]
[White "Koellner, Ruben Gideon"]
[Black "Gokerkan, Cem Kaan"]
[WhiteFideId "12993093"]
[BlackFideId "6336760"]
[WhiteElo "2564"]
[BlackElo "2382"]
[Result "1-0"]
[Round "03"]
[TimeControl "180+1"]
[Date "2022.04.26"]
[WhiteClock "0:00:38"]
[BlackClock "0:00:01"]

1. d4 {[%clk 0:03:00]}  Nf6 {[%clk 0:02:59]} 2. Bg5 {[%clk 0:03:00]}  d5 {[%clk 0:02:59]} 3. e3 {[%clk 0:03:00]}  c5 {[%clk 0:02:59]} 4. Bxf6 {[%clk 0:03:00]}  gxf6 {[%clk 0:03:00]} 5. dxc5 {[%clk 0:03:00]}  e6 {[%clk 0:03:01]} 6. c4 {[%clk 0:03:00]}  dxc4 {[%clk 0:03:02]} 7. Nd2 {[%clk 0:03:01]}  Bxc5 {[%clk 0:02:59]} 8. Bxc4 {[%clk 0:03:01]}  Nc6 {[%clk 0:02:53]} 9. Ngf3 {[%clk 0:03:01]}  O-O {[%clk 0:02:52]} 10. O-O {[%clk 0:03:00]}  f5 {[%clk 0:02:52]} 11. Rc1 {[%clk 0:02:59]}  Be7 {[%clk 0:02:45]} 12. Qe2 {[%clk 0:02:55]}  Bf6 {[%clk 0:02:44]} 13. b3 {[%clk 0:02:51]}  Qe7 {[%clk 0:02:36]} 14. e4 {[%clk 0:02:51]}  fxe4 {[%clk 0:02:26]} 15. Nxe4 {[%clk 0:02:50]}  Bg7 {[%clk 0:02:26]} 16. Rfd1 {[%clk 0:02:48]}  e5 {[%clk 0:01:48]} 17. Nd6 {[%clk 0:02:44]}  Bg4 {[%clk 0:01:47]} 18. Qe4 {[%clk 0:02:43]}  Bh5 {[%clk 0:01:42]} 19. Nf5 {[%clk 0:02:37]}  Qf6 {[%clk 0:01:02]} 20. Rd6 {[%clk 0:02:34]}  Bxf3 {[%clk 0:01:02]} 21. gxf3 {[%clk 0:02:25]}  Qg5+ {[%clk 0:01:02]} 22. Qg4 {[%clk 0:02:23]}  Qxg4+ {[%clk 0:00:51]} 23. fxg4 {[%clk 0:02:24]}  Rad8 {[%clk 0:00:46]} 24. Rcd1 {[%clk 0:02:22]}  Nd4 {[%clk 0:00:46]} 25. Kg2 {[%clk 0:01:52]}  a6 {[%clk 0:00:40]} 26. Rxd8 {[%clk 0:01:42]}  Rxd8 {[%clk 0:00:40]} 27. Nxd4 {[%clk 0:01:43]}  exd4 {[%clk 0:00:41]} 28. a4 {[%clk 0:01:42]}  Bf6 {[%clk 0:00:34]} 29. Rd3 {[%clk 0:01:41]}  Be5 {[%clk 0:00:33]} 30. Rf3 {[%clk 0:01:40]}  Rd7 {[%clk 0:00:33]} 31. h4 {[%clk 0:01:38]}  h6 {[%clk 0:00:32]} 32. Kf1 {[%clk 0:01:38]}  Kg7 {[%clk 0:00:32]} 33. Ke2 {[%clk 0:01:38]}  Rc7 {[%clk 0:00:29]} 34. Kd3 {[%clk 0:01:35]}  Bf6 {[%clk 0:00:26]} 35. h5 {[%clk 0:01:34]}  Re7 {[%clk 0:00:24]} 36. Rf5 {[%clk 0:01:29]}  Re1 {[%clk 0:00:24]} 37. Bd5 {[%clk 0:01:22]}  Rd1+ {[%clk 0:00:22]} 38. Kc2 {[%clk 0:01:19]}  Rg1 {[%clk 0:00:21]} 39. Bxb7 {[%clk 0:01:15]}  Rxg4 {[%clk 0:00:13]} 40. Bxa6 {[%clk 0:01:15]}  Rg1 {[%clk 0:00:11]} 41. Bc4 {[%clk 0:01:08]}  Ra1 {[%clk 0:00:10]} 42. a5 {[%clk 0:01:08]}  Ra2+ {[%clk 0:00:07]} 43. Kd3 {[%clk 0:01:08]}  Ra1 {[%clk 0:00:06]} 44. a6 {[%clk 0:01:08]}  Rd1+ {[%clk 0:00:05]} 45. Kc2 {[%clk 0:01:04]}  Ra1 {[%clk 0:00:06]} 46. Kb2 {[%clk 0:00:53]}  Re1 {[%clk 0:00:01]} 47. a7 {[%clk 0:00:46]}  Re8 {[%clk 0:00:01]} 48. Kc2 {[%clk 0:00:38]} 1-0


[Site "https://www.chess.com"]

[Event "Titled Tuesday Blitz April 26 Early 2022"]
[White "Korchmar, Vasiliy"]
[Black "Gutierrez Olivares, Daniel"]
[WhiteFideId "24131750"]
[BlackFideId "2264005"]
[WhiteElo "2370"]
[BlackElo "2317"]
[Result "1-0"]
[Round "03"]
[TimeControl "180+1"]
[Date "2022.04.26"]
[WhiteClock "0:00:08"]
[BlackClock "0:00:05"]

1. e4 {[%clk 0:03:00]}  e6 {[%clk 0:02:59]} 2. d4 {[%clk 0:03:00]}  d5 {[%clk 0:03:00]} 3. e5 {[%clk 0:03:01]}  c5 {[%clk 0:03:00]} 4. c3 {[%clk 0:03:01]}  Nc6 {[%clk 0:03:00]} 5. Nf3 {[%clk 0:03:02]}  Bd7 {[%clk 0:02:53]} 6. Be2 {[%clk 0:03:00]}  Nge7 {[%clk 0:02:51]} 7. Na3 {[%clk 0:03:00]}  cxd4 {[%clk 0:02:48]} 8. cxd4 {[%clk 0:03:00]}  Nf5 {[%clk 0:02:48]} 9. Nc2 {[%clk 0:03:00]}  Be7 {[%clk 0:02:49]} 10. O-O {[%clk 0:02:54]}  O-O {[%clk 0:02:44]} 11. Bd3 {[%clk 0:02:54]}  Rc8 {[%clk 0:02:31]} 12. Bxf5 {[%clk 0:02:51]}  exf5 {[%clk 0:02:31]} 13. g3 {[%clk 0:02:25]}  Be6 {[%clk 0:02:23]} 14. h4 {[%clk 0:02:24]}  h5 {[%clk 0:02:24]} 15. Bg5 {[%clk 0:02:23]}  g6 {[%clk 0:02:04]} 16. Ne3 {[%clk 0:02:16]}  Qb6 {[%clk 0:01:56]} 17. Bxe7 {[%clk 0:02:00]}  Nxe7 {[%clk 0:01:57]} 18. Qd2 {[%clk 0:01:57]}  f4 {[%clk 0:01:47]} 19. gxf4 {[%clk 0:01:44]}  Bg4 {[%clk 0:01:47]} 20. Ng5 {[%clk 0:01:38]}  f6 {[%clk 0:01:39]} 21. exf6 {[%clk 0:01:08]}  Qxf6 {[%clk 0:01:40]} 22. Ng2 {[%clk 0:01:05]}  Nf5 {[%clk 0:01:35]} 23. f3 {[%clk 0:00:58]}  Nxd4 {[%clk 0:01:01]} 24. fxg4 {[%clk 0:00:55]}  Rc2 {[%clk 0:01:00]} 25. Qe3 {[%clk 0:00:54]}  Re2 {[%clk 0:00:45]} 26. Qd3 {[%clk 0:00:44]}  hxg4 {[%clk 0:00:16]} 27. Rad1 {[%clk 0:00:34]}  Rxg2+ {[%clk 0:00:05]} 28. Kxg2 {[%clk 0:00:30]}  Nf5 {[%clk 0:00:06]} 29. Qxd5+ {[%clk 0:00:28]}  Kh8 {[%clk 0:00:07]} 30. Qe5 {[%clk 0:00:22]}  Nxh4+ {[%clk 0:00:06]} 31. Kg3 {[%clk 0:00:14]}  Nf5+ {[%clk 0:00:06]} 32. Kxg4 {[%clk 0:00:08]}  Qxe5 {[%clk 0:00:05]} 33. Rh1+ {[%clk 0:00:08]} 1-0


[Site "https://www.chess.com"]

[Event "Titled Tuesday Blitz April 26 Early 2022"]
[White "Lauridsen, Jesper Morch"]
[Black "Sarkar, Justin"]
[WhiteFideId "1401890"]
[BlackFideId "2010011"]
[WhiteElo "2285"]
[BlackElo "2038"]
[Result "1-0"]
[Round "03"]
[TimeControl "180+1"]
[Date "2022.04.26"]
[WhiteClock "0:00:46"]
[BlackClock "0:00:01"]

1. e4 {[%clk 0:03:00]}  e5 {[%clk 0:02:58]} 2. Nf3 {[%clk 0:03:00]}  Nc6 {[%clk 0:02:56]} 3. Bc4 {[%clk 0:02:59]}  Nf6 {[%clk 0:02:55]} 4. d4 {[%clk 0:02:57]}  exd4 {[%clk 0:02:45]} 5. O-O {[%clk 0:02:57]}  Nxe4 {[%clk 0:02:37]} 6. Re1 {[%clk 0:02:56]}  d5 {[%clk 0:02:37]} 7. Bxd5 {[%clk 0:02:56]}  Qxd5 {[%clk 0:02:37]} 8. Nc3 {[%clk 0:02:57]}  Qh5 {[%clk 0:02:17]} 9. Nxe4 {[%clk 0:02:57]}  Be7 {[%clk 0:02:11]} 10. Bg5 {[%clk 0:02:30]}  Bg4 {[%clk 0:02:00]} 11. Bxe7 {[%clk 0:02:12]}  Nxe7 {[%clk 0:01:57]} 12. Ng3 {[%clk 0:01:42]}  Bxf3 {[%clk 0:01:43]} 13. Rxe7+ {[%clk 0:01:40]}  Kf8 {[%clk 0:01:01]} 14. Qe1 {[%clk 0:01:36]}  Qc5 {[%clk 0:00:22]} 15. Re5 {[%clk 0:01:29]}  Bd5 {[%clk 0:00:22]} 16. b4 {[%clk 0:00:53]}  Qc6 {[%clk 0:00:11]} 17. b5 {[%clk 0:00:53]}  Qd7 {[%clk 0:00:09]} 18. Qb4+ {[%clk 0:00:51]}  Kg8 {[%clk 0:00:07]} 19. Nf5 {[%clk 0:00:48]}  h6 {[%clk 0:00:01]} 20. Rxd5 {[%clk 0:00:46]} 1-0


[Site "https://www.chess.com"]

[Event "Titled Tuesday Blitz April 26 Early 2022"]
[White "Lazavik, Denis"]
[Black "Petrovskyi, Vadym"]
[WhiteFideId "13515110"]
[BlackFideId "14165210"]
[WhiteElo "2437"]
[BlackElo "2400"]
[Result "1-0"]
[Round "03"]
[TimeControl "180+1"]
[Date "2022.04.26"]
[WhiteClock "0:00:23"]
[BlackClock "0:00:17"]

1. d4 {[%clk 0:03:00]}  Nf6 {[%clk 0:03:00]} 2. c4 {[%clk 0:03:00]}  g6 {[%clk 0:02:58]} 3. g3 {[%clk 0:03:00]}  Bg7 {[%clk 0:02:58]} 4. Bg2 {[%clk 0:03:01]}  O-O {[%clk 0:02:58]} 5. Nc3 {[%clk 0:03:01]}  d6 {[%clk 0:02:58]} 6. Nf3 {[%clk 0:03:01]}  c5 {[%clk 0:02:58]} 7. O-O {[%clk 0:02:58]}  Nc6 {[%clk 0:02:58]} 8. dxc5 {[%clk 0:02:58]}  dxc5 {[%clk 0:02:59]} 9. Bf4 {[%clk 0:02:57]}  Qa5 {[%clk 0:02:50]} 10. Qa4 {[%clk 0:02:28]}  Be6 {[%clk 0:02:37]} 11. Rac1 {[%clk 0:02:20]}  Qxa4 {[%clk 0:02:09]} 12. Nxa4 {[%clk 0:02:19]}  Nd7 {[%clk 0:02:09]} 13. Rfd1 {[%clk 0:01:55]}  h6 {[%clk 0:02:05]} 14. Be3 {[%clk 0:01:46]}  b6 {[%clk 0:01:57]} 15. Ng5 {[%clk 0:01:44]}  hxg5 {[%clk 0:01:55]} 16. Bxc6 {[%clk 0:01:43]}  Rad8 {[%clk 0:01:55]} 17. Bxg5 {[%clk 0:01:32]}  Ne5 {[%clk 0:01:53]} 18. Bd5 {[%clk 0:01:32]}  Nxc4 {[%clk 0:01:30]} 19. Bxe6 {[%clk 0:01:28]}  Rxd1+ {[%clk 0:01:29]} 20. Rxd1 {[%clk 0:01:29]}  fxe6 {[%clk 0:01:30]} 21. b3 {[%clk 0:01:24]}  Ne5 {[%clk 0:01:14]} 22. Bxe7 {[%clk 0:01:22]}  Re8 {[%clk 0:01:14]} 23. Bg5 {[%clk 0:01:20]}  Rc8 {[%clk 0:01:11]} 24. Nc3 {[%clk 0:01:01]}  Nf7 {[%clk 0:00:58]} 25. Bd2 {[%clk 0:00:56]}  c4 {[%clk 0:00:58]} 26. Ne4 {[%clk 0:00:43]}  b5 {[%clk 0:00:45]} 27. Rc1 {[%clk 0:00:32]}  Rc6 {[%clk 0:00:35]} 28. bxc4 {[%clk 0:00:31]}  bxc4 {[%clk 0:00:34]} 29. Kf1 {[%clk 0:00:31]}  Ne5 {[%clk 0:00:20]} 30. Bc3 {[%clk 0:00:28]}  Nd7 {[%clk 0:00:20]} 31. Bxg7 {[%clk 0:00:26]}  Kxg7 {[%clk 0:00:21]} 32. Ke1 {[%clk 0:00:26]}  Nb6 {[%clk 0:00:21]} 33. Kd2 {[%clk 0:00:26]}  e5 {[%clk 0:00:20]} 34. h4 {[%clk 0:00:25]}  Kf7 {[%clk 0:00:19]} 35. Rb1 {[%clk 0:00:23]}  Ke6 {[%clk 0:00:19]} 36. Rb5 {[%clk 0:00:24]}  Rc8 {[%clk 0:00:19]} 37. Ra5 {[%clk 0:00:20]}  Rc7 {[%clk 0:00:18]} 38. f3 {[%clk 0:00:21]}  Rd7+ {[%clk 0:00:16]} 39. Kc2 {[%clk 0:00:20]}  Rc7 {[%clk 0:00:16]} 40. Nc3 {[%clk 0:00:20]}  Rd7 {[%clk 0:00:16]} 41. Rb5 {[%clk 0:00:20]}  Kf6 {[%clk 0:00:15]} 42. a4 {[%clk 0:00:20]}  Rc7 {[%clk 0:00:15]} 43. a5 {[%clk 0:00:20]}  Na8 {[%clk 0:00:14]} 44. Nd5+ {[%clk 0:00:20]}  Ke6 {[%clk 0:00:15]} 45. Nxc7+ {[%clk 0:00:21]}  Nxc7 {[%clk 0:00:15]} 46. Rc5 {[%clk 0:00:21]}  Kd6 {[%clk 0:00:14]} 47. Rxc4 {[%clk 0:00:22]}  Nb5 {[%clk 0:00:15]} 48. Kd3 {[%clk 0:00:21]}  Kd5 {[%clk 0:00:16]} 49. e4+ {[%clk 0:00:21]}  Kd6 {[%clk 0:00:16]} 50. g4 {[%clk 0:00:22]}  Nd4 {[%clk 0:00:17]} 51. Rxd4+ {[%clk 0:00:22]}  exd4 {[%clk 0:00:17]} 52. Kxd4 {[%clk 0:00:23]} 1-0


[Site "https://www.chess.com"]

[Event "Titled Tuesday Blitz April 26 Early 2022"]
[White "Leiva, Gianmarco"]
[Black "Ianov, Viktor"]
[WhiteFideId "3804399"]
[BlackFideId "14102730"]
[WhiteElo "2323"]
[BlackElo "2161"]
[Result "1-0"]
[Round "03"]
[TimeControl "180+1"]
[Date "2022.04.26"]
[WhiteClock "0:00:13"]
[BlackClock "0:00:49"]

1. b3 {[%clk 0:02:51]}  Nf6 {[%clk 0:02:58]} 2. Bb2 {[%clk 0:02:52]}  g6 {[%clk 0:02:58]} 3. Nf3 {[%clk 0:02:41]}  Bg7 {[%clk 0:02:57]} 4. g3 {[%clk 0:02:42]}  O-O {[%clk 0:02:56]} 5. Bg2 {[%clk 0:02:42]}  d6 {[%clk 0:02:54]} 6. O-O {[%clk 0:02:41]}  e5 {[%clk 0:02:54]} 7. c4 {[%clk 0:02:40]}  Nc6 {[%clk 0:02:52]} 8. Nc3 {[%clk 0:02:40]}  h6 {[%clk 0:02:51]} 9. h3 {[%clk 0:02:32]}  Be6 {[%clk 0:02:50]} 10. e4 {[%clk 0:02:29]}  Qd7 {[%clk 0:02:48]} 11. Kh2 {[%clk 0:02:28]}  Rfe8 {[%clk 0:02:48]} 12. d3 {[%clk 0:02:18]}  a5 {[%clk 0:02:47]} 13. a3 {[%clk 0:02:11]}  Na7 {[%clk 0:02:42]} 14. d4 {[%clk 0:02:09]}  exd4 {[%clk 0:02:40]} 15. Nxd4 {[%clk 0:02:10]}  Nc6 {[%clk 0:02:39]} 16. Nde2 {[%clk 0:01:44]}  Qc8 {[%clk 0:02:22]} 17. Qd2 {[%clk 0:00:59]}  Nd7 {[%clk 0:02:22]} 18. Nd5 {[%clk 0:00:57]}  Bxd5 {[%clk 0:02:17]} 19. cxd5 {[%clk 0:00:55]}  Ncb8 {[%clk 0:02:11]} 20. Bxg7 {[%clk 0:00:54]}  Kxg7 {[%clk 0:02:10]} 21. Rac1 {[%clk 0:00:54]}  Nb6 {[%clk 0:01:57]} 22. Nd4 {[%clk 0:00:46]}  N8d7 {[%clk 0:01:54]} 23. Nb5 {[%clk 0:00:45]}  Nc5 {[%clk 0:01:51]} 24. b4 {[%clk 0:00:40]}  axb4 {[%clk 0:01:48]} 25. axb4 {[%clk 0:00:41]}  Na6 {[%clk 0:01:47]} 26. Nxd6 {[%clk 0:00:37]}  Qd7 {[%clk 0:01:46]} 27. Nxe8+ {[%clk 0:00:31]}  Rxe8 {[%clk 0:01:46]} 28. Qd4+ {[%clk 0:00:29]}  Kg8 {[%clk 0:01:45]} 29. Rc3 {[%clk 0:00:26]}  Qd6 {[%clk 0:01:44]} 30. b5 {[%clk 0:00:23]}  Nb8 {[%clk 0:01:37]} 31. f4 {[%clk 0:00:23]}  f6 {[%clk 0:01:32]} 32. Rfc1 {[%clk 0:00:21]}  Re7 {[%clk 0:01:32]} 33. h4 {[%clk 0:00:14]}  Kg7 {[%clk 0:01:25]} 34. Bh3 {[%clk 0:00:12]}  h5 {[%clk 0:01:23]} 35. R1c2 {[%clk 0:00:12]}  Kh7 {[%clk 0:01:20]} 36. Re3 {[%clk 0:00:08]}  N8d7 {[%clk 0:01:17]} 37. Rce2 {[%clk 0:00:05]}  Kg7 {[%clk 0:01:12]} 38. Rd2 {[%clk 0:00:03]}  Qc5 {[%clk 0:01:10]} 39. Ree2 {[%clk 0:00:04]}  Qxd4 {[%clk 0:01:09]} 40. Rxd4 {[%clk 0:00:05]}  Nc5 {[%clk 0:01:09]} 41. e5 {[%clk 0:00:04]}  f5 {[%clk 0:01:08]} 42. d6 {[%clk 0:00:04]}  cxd6 {[%clk 0:01:08]} 43. Rxd6 {[%clk 0:00:05]}  Nc4 {[%clk 0:01:05]} 44. Rd8 {[%clk 0:00:05]}  Ne4 {[%clk 0:01:04]} 45. Bg2 {[%clk 0:00:05]}  Na3 {[%clk 0:00:59]} 46. Bxe4 {[%clk 0:00:05]}  fxe4 {[%clk 0:00:59]} 47. b6 {[%clk 0:00:05]}  Nc4 {[%clk 0:00:59]} 48. Rxe4 {[%clk 0:00:05]}  Nxb6 {[%clk 0:00:59]} 49. Rb4 {[%clk 0:00:05]}  Re6 {[%clk 0:00:55]} 50. Rb8 {[%clk 0:00:05]}  Nd5 {[%clk 0:00:54]} 51. R4xb7+ {[%clk 0:00:06]}  Re7 {[%clk 0:00:51]} 52. Rxe7+ {[%clk 0:00:05]}  Nxe7 {[%clk 0:00:51]} 53. Rb7 {[%clk 0:00:06]}  Kf7 {[%clk 0:00:51]} 54. Rxe7+ {[%clk 0:00:07]}  Kxe7 {[%clk 0:00:51]} 55. g4 {[%clk 0:00:08]}  hxg4 {[%clk 0:00:49]} 56. Kg3 {[%clk 0:00:09]}  Ke6 {[%clk 0:00:50]} 57. Kxg4 {[%clk 0:00:10]}  Kf7 {[%clk 0:00:50]} 58. Kg5 {[%clk 0:00:11]}  Kg7 {[%clk 0:00:50]} 59. e6 {[%clk 0:00:11]}  Kh7 {[%clk 0:00:49]} 60. Kf6 {[%clk 0:00:12]}  Kg8 {[%clk 0:00:49]} 61. e7 {[%clk 0:00:13]} 1-0


[Site "https://www.chess.com"]